[Event "ChessKid Cup Div-III 2023"]
[Site "Online"]
[Date "2023.05.22"]
[Round "1.2"]
[White "Terry, Renato"]
[Black "Tari, Aryan"]
[Result "1/2-1/2"]
[ECO "A48"]
[WhiteElo "2520"]
[BlackElo "2642"]
[Annotator "TA"]
[PlyCount "172"]
[EventDate "2023.05.21"]
[EventType "k.o."]
[EventCountry "NET"]
[SourceTitle "playchess.com"]
[Source "ChessBase"]
[SourceQuality "1"]
[TimeControl "900+3"]

{[%evp 10,172,0,-25,-11,-51,-16,-33,-8,-1,15,-29,0,0,0,0,0,-15,0,-3,0,0,0,0,12,2,35,23,29,29,122,68,75,70,75,63,75,37,42,27,31,15,31,30,38,48,89,88,99,93,129,119,116,48,91,102,94,89,125,74,79,12,1,0,61,66,61,-209,68,70,75,41,83,19,44,0,71,62,61,71,74,74,88,64,64,64,65,48,48,48,48,14,14,0,48,0,10,0,70,71,71,71,78,0,25,0,0,0,0,0,0,0,0,-40,0,0,0,-78,0,0,0,-78,-78,-78,-78,-3377,-82,-91,0,0,0,-114,0,-114,0,-114,0,0,0,0,0,0,0,0,29989,26,26,25,44,44,44,44,66,44,66,35,96,66,96,96,96,96,96,96,96]} 1. Nf3 {[%emt 0:00:08]} Nf6 {[%emt 0:00:22]} 2. d4 {[%emt 0:00:09]} g6 {[%emt 0:00:25]} 3. Bg5 {[%emt 0:00:02]} Bg7 {[%emt 0:00:01]} 4. c3 {[%emt 0:00:01]} h6 {[%emt 0:00:08]} 5. Bf4 {[%emt 0:00:04]} d6 {[%emt 0:00:09]} 6. Nbd2 {[%emt 0:00:01]} Nh5 {[%emt 0:00:24]} 7. Bg3 {[%emt 0:00:10]} O-O {[%emt 0:00:52]} 8. e4 {[%emt 0:00:02]} c5 {[%emt 0:00:14]} 9. d5 {[%emt 0:00:07]} e6 {[%emt 0:00:54]} 10. Nc4 {[%emt 0:00:31]} Nxg3 {[%emt 0:02:35]} 11. hxg3 {[%emt 0:00:01]} Re8 {[%emt 0:00:09]} 12. dxe6 {[%emt 0:00:48]} Rxe6 {[%emt 0:00:11]} 13. Be2 {[%emt 0:00:01]} Nc6 {[%emt 0:01:46]} 14. Nfd2 {[%emt 0:04:57]} (14. Qd5 Ne7 15. Qd2 b5 $15) 14... d5 {[%emt 0:00:57]} 15. exd5 {[%emt 0:00:03]} Qxd5 {[%emt 0:00:04]} 16. O-O {[%emt 0:00:03]} Re7 {[%emt 0:01:45]} 17. Bf3 {[%emt 0:02:36]} Qd3 {[%emt 0:00:03]} 18. Qa4 {[%emt 0:01:03]} Bd7 {[%emt 0:01:03]} 19. Qa3 {[%emt 0:00:01]} Qf5 {[%emt 0:01:14]} (19... Be6 $11 20. Qxc5 Rc7) 20. Nd6 {[%emt 0:00:26]} (20. Rad1 $16) 20... Qd3 $14 {[%emt 0:00:11]} 21. N2c4 {[%emt 0:01:34]} Ne5 $1 {[%emt 0:00:22]} 22. Nxe5 {[%emt 0:01:39]} (22. Qxc5 $2 {loses.} Nxf3+ 23. gxf3 Qxf3 $19) 22... Qxd6 {[%emt 0:00:14]} 23. Bxb7 {[%emt 0:00:20]} Rb8 {[%emt 0:00:16]} 24. Nxd7 {[%emt 0:00:16]} Qxd7 {[%emt 0:00:13]} 25. Bf3 {[%emt 0:00:01]} (25. Qxa7 $2 {is the wrong capture.} Qxb7 26. Qxc5 Re5 $19) 25... Qb5 {[%emt 0:00:13]} 26. Rab1 {[%emt 0:00:07]} Rb6 {[%emt 0:00:41]} 27. Bd5 {[%emt 0:00:31]} Rd7 {[%emt 0:00:19]} 28. c4 {[%emt 0:00:23]} Qb4 {[%emt 0:00:18]} 29. Qe3 {[%emt 0:00:01]} Rb8 {[%emt 0:00:15]} 30. a3 $1 {[%emt 0:00:03]} Qb6 {[%emt 0:00:02]} 31. Rfe1 {[%emt 0:00:04]} (31. b4 $16) 31... Bd4 {[%emt 0:00:06]} 32. Qxh6 {[%emt 0:00:03]} Qf6 {[%emt 0:00:00]} 33. Re2 {[%emt 0:00:02]} a5 {[%emt 0:00:08]} 34. a4 {[%emt 0:00:16]} (34. Rbe1 $142 {Threatening mate with Re8+.} Rf8 35. g4 (35. Re8 Qxf2+ 36. Kh2 Bg7 $16)) 34... Rdd8 $16 {[%emt 0:00:04]} 35. b3 {[%emt 0:00:01]} (35. g4 $16) 35... Re8 $1 $11 {[%emt 0:00:02]} 36. Rd2 {[%emt 0:00:12]} (36. Rxe8+ {simplifies} Rxe8 37. Qf4 Qxf4 38. gxf4 Re2 39. Rd1) 36... Re7 {[%emt 0:00:01]} (36... Qf5 $11 37. Rbd1 Rxb3) 37. Qf4 $14 {[%emt 0:00:01]} Rbe8 {[%emt 0:00:05]} 38. Kf1 $2 {[%emt 0:00:02][%mdl 8192]} (38. Qxf6 $14 {keeps the upper hand.} Bxf6 39. Rdd1) 38... Kg7 $2 {[%emt 0:00:01]} (38... Qh8 $1 $19 {[%cal Rh8h1]} 39. Qh4 Qe5) 39. Qxf6+ $14 {[%emt 0:00:02]} Bxf6 {[%emt 0:00:01]} 40. Rc2 {[%emt 0:00:07]} Bd4 {[%emt 0:00:02]} 41. Bf3 {[%emt 0:00:01]} (41. g4 $1 $16) 41... f5 {[%emt 0:00:03]} 42. g4 {[%emt 0:00:01]} f4 {[%emt 0:00:01]} (42... Rh8 $11 43. Kg1 fxg4 44. Bxg4 Re4) 43. Re2 $1 $16 {[%emt 0:00:05]} Rxe2 {[%emt 0:00:05]} 44. Bxe2 {[%emt 0:00:00]} g5 {[%emt 0:00:01]} 45. Rd1 {[%emt 0:00:01]} Kf6 {[%emt 0:00:02]} 46. Bf3 {[%emt 0:00:05]} Rh8 {[%emt 0:00:02]} 47. Kg1 {[%emt 0:00:01]} Rb8 {[%emt 0:00:02]} 48. Rb1 {[%emt 0:00:02]} Re8 {[%emt 0:00:02]} 49. Kf1 $1 {[%emt 0:00:01]} Rh8 {[%emt 0:00:01]} 50. Ke2 {[%emt 0:00:01]} Re8+ {[%emt 0:00:01]} 51. Kf1 {[%emt 0:00:01]} Rh8 {[%emt 0:00:00]} 52. Kg1 {[%emt 0:00:01]} Re8 $1 {[%emt 0:00:01]} 53. Rd1 {[%emt 0:00:09]} (53. Rc1 $11) 53... Rb8 $14 {[%emt 0:00:01]} 54. Rd3 {[%emt 0:00:00]} Re8 {[%emt 0:00:02]} 55. Kf1 $1 {[%emt 0:00:01]} Rh8 {[%emt 0:00:03]} 56. Bd5 {[%emt 0:00:03]} (56. Be4 $1 $16) 56... Rh1+ $1 $11 {[%emt 0:00:02]} 57. Ke2 {[%emt 0:00:00]} Rb1 {[%emt 0:00:01]} 58. Rh3 {[%emt 0:00:01]} Rb2+ {[%emt 0:00:02]} 59. Kd1 {[%emt 0:00:01]} Bxf2 {[%emt 0:00:05]} 60. Kc1 {[%emt 0:00:11]} Ra2 {[%emt 0:00:14]} 61. Rh5 {[%emt 0:00:05]} Be3+ {[%emt 0:00:14]} 62. Kb1 {[%emt 0:00:01]} Rf2 {[%emt 0:00:02]} 63. Bf3 {[%emt 0:00:07]} (63. Rh1 $1 $11) 63... Bd4 {[%emt 0:00:07]} (63... Ke5 $1 $17 {[%cal Re5d4] Hoping for ...Kd4.} 64. Rxg5+ Kd4 65. Rd5+ Kc3) 64. Rh6+ {[%emt 0:00:01]} Ke5 {[%emt 0:00:01]} 65. Rg6 {[%emt 0:00:05]} (65. Rh8 $11 {keeps the balance.}) 65... Be3 $1 $17 {[%emt 0:00:02]} 66. Rxg5+ {[%emt 0:00:04] [#]} Kd4 $1 {[%emt 0:00:00]} 67. Rd5+ {[%emt 0:00:12]} Kc3 {[%emt 0:00:01]} 68. g5 {[%emt 0:00:02] [#]} Kxb3 {[%emt 0:00:13]} (68... Bd4 $1 $17 {Threatens to win with ...Rf1+.} 69. g6 Rb2+ 70. Kc1 Rxb3) 69. Rd3+ $11 {[%emt 0:00:02]} Kxc4 {[%emt 0:00:01]} 70. g6 {[%emt 0:00:03]} (70. Rd7 $1 $11 {remains equal.} Kc3 71. g6 Rf1+ 72. Ka2 Rf2+ 73. Kb1 Rf1+ 74. Ka2 Rf2+ 75. Kb1) 70... Rf1+ {[%emt 0:00:05]} (70... Kxd3 $17 71. g7 Rf1+ 72. Ka2 Rf2+ 73. Kb1 Rf1+ 74. Ka2 Rf2+ 75. Kb1) 71. Kc2 {[%emt 0:00:03]} (71. Rd1 $11 {was the only way to keep the balance.} Rxd1+ 72. Bxd1) 71... Rf2+ {[%emt 0:00:01]} 72. Kb1 {[%emt 0:00:01]} Rf1+ {[%emt 0:00:01]} ({Black should play} 72... Kxd3 $17 73. g7 Rf1+ 74. Ka2 Rf2+ 75. Kb1 Rf1+ 76. Ka2 Rf2+ 77. Kb1) 73. Rd1 {[%emt 0:00:08]} (73. Kc2 $5 {[%cal Rf3d5]} Rf2+ 74. Kb1 $17) 73... Rxd1+ {[%emt 0:00:01]} 74. Bxd1 {[%emt 0:00:00]} Bd4 {[%emt 0:00:01]} 75. Kc2 {[%emt 0:00:01]} Kd5 {[%emt 0:00:04]} 76. Bf3+ {[%emt 0:00:00]} Ke5 $2 {[%emt 0:00:04][%mdl 8192]} (76... Kc4 $11) 77. Kd3 $2 {[%emt 0:00:01]} (77. g7 {mates} Ke6 78. g8=Q+ Kf6 79. Qf8+ Ke5 80. Kd3 Bf2 81. Qe7+ Kf5 82. Be4+ Kg4 83. Qg7+ Kh4 84. Bf3 c4+ 85. Kxc4 Bg3 86. Qh6#) 77... Kf6 $11 {[%emt 0:00:01]} 78. Be4 {[%emt 0:00:01]} Bf2 {[%emt 0:00:03]} 79. Kc4 {[%emt 0:00:01]} Be1 {[%emt 0:00:02]} 80. Kxc5 {[%emt 0:00:01]} Kg7 {[%emt 0:00:01]} 81. Kd5 {[%emt 0:00:01]} (81. Kd4 $5) 81... Bd2 {[%emt 0:00:00]} 82. Ke5 {[%emt 0:00:01]} Be1 {[%emt 0:00:01]} (82... f3 $14) 83. Kf5 {[%emt 0:00:00]} Bb4 {[%emt 0:00:00]} 84. Kxf4 {[%emt 0:00:01]} Bc3 {[%emt 0:00:00]} 85. Kf5 {[%emt 0:00:02]} Bb4 {[%emt 0:00:01]} 86. Ke6 {[%emt 0:00:00]} Bd2 {[%emt 0:00:00]} 1/2-1/2

[Event "ChessKid Cup Div-III 2023"]
[Site "Online"]
[Date "2023.05.22"]
[Round "1.2"]
[White "Raja Harshit"]
[Black "Vallejo Pons, Francisco"]
[Result "0-1"]
[ECO "B42"]
[WhiteElo "2515"]
[BlackElo "2712"]
[Annotator "TA"]
[PlyCount "82"]
[EventDate "2023.05.21"]
[EventType "k.o."]
[EventCountry "NET"]
[SourceTitle "playchess.com"]
[Source "ChessBase"]
[SourceQuality "1"]
[TimeControl "900+3"]

{[%evp 12,82,57,46,86,88,87,100,98,52,97,6,54,-20,51,-4,57,60,55,47,31,51,47,40,18,17,35,4,152,-183,-170,-215,-217,-248,-247,-237,-236,-335,-307,-305,-302,-324,-309,-343,-277,-292,-289,-292,-286,-321,-292,-501,-501,-533,-515,-643,-644,-855,-830,-838,-824,-906,-873,-29988,-29989,-29989,-29990,-29993,-29990,-29991,-29992,-29992,-29990]} 1. e4 {[%emt 0:00:04]} c5 {[%emt 0:00:08]} 2. Nf3 {[%emt 0:00:08]} e6 {[%emt 0:00:02]} 3. d4 {[%emt 0:00:01]} cxd4 {[%emt 0:00:02]} 4. Nxd4 {[%emt 0:00:00]} a6 {[%emt 0:00:03]} 5. Bd3 {[%emt 0:00:03]} Bc5 {[%emt 0:00:11]} 6. Nb3 {[%emt 0:00:02]} Be7 {[%emt 0:00:37]} 7. Qg4 {[%emt 0:00:02]} Nf6 {[%emt 0:00:04] B42: Sicilian: Kan Variation: 5 Bd3.} 8. Qxg7 {[%emt 0:00:46]} Rg8 {[%emt 0:00:02]} 9. Qh6 {[%emt 0:00:01]} Nc6 {[%emt 0:00:00] White is better.} 10. Nc3 {[%emt 0:01:05]} (10. O-O $16) 10... b5 {[%emt 0:01:34]} 11. Be3 {[%emt 0:00:45]} ({Better is} 11. O-O $16) 11... Ne5 {[%emt 0:00:55]} (11... Rg6 $1 $11 12. Qh3 e5) 12. O-O-O {[%emt 0:00:35] [#]} (12. Bd4 $14 d6 13. Bxe5 dxe5 14. O-O) 12... Bb7 $146 {[%emt 0:02:09]} (12... b4 $11 13. Na4 Qc7) ({Predecessor:} 12... Qc7 13. Qh3 d6 14. Be2 Nc4 15. Bxc4 bxc4 16. Nd4 Rb8 17. f3 Qb7 18. b3 e5 {0-1 Stephan,J (2452)-Korze,D (2306) EU-ch MN/075 email 2004}) 13. Bd4 {[%emt 0:01:33]} (13. f3 $14) 13... Qc7 {[%emt 0:04:54]} (13... Nxd3+ $1 $11 14. cxd3 d6) 14. Kb1 $1 $36 {[%emt 0:03:26][%mdl 2048] White has some pressure.} Rxg2 {[%emt 0:00:56]} 15. Qh3 {[%emt 0:03:35]} Rg6 {[%emt 0:00:42]} 16. Rhe1 {[%emt 0:00:36]} Rc8 {[%emt 0:00:32]} 17. f4 {[%emt 0:01:30]} Nxd3 {[%emt 0:00:04]} 18. Qxd3 {[%emt 0:00:05]} b4 $1 {[%emt 0:01:27]} 19. Na4 {[%emt 0:00:07] Threatens to win with Nac5.} (19. f5 {feels hotter.} Rg2 20. e5 Nd5 21. Nxd5 Bxd5 22. f6) 19... Rg2 {[%emt 0:00:09]} (19... Bxe4 $11 {keeps the balance.} 20. Rxe4 Nxe4 21. Qxe4 Qc6 22. Qxc6 Rxc6) 20. Bc5 $2 {[%emt 0:01:10] White does not recover from this.} (20. Nac5 $16 {stays on course.}) 20... d6 $1 $19 {[%emt 0:00:24][%mdl 64] [#] Deflection. Active counter play!} (20... Rxh2 21. e5 Be4 22. Rxe4 Nxe4 23. Qxe4 $11) (20... Qxf4 21. Bxe7 Kxe7 22. Nbc5 $14) 21. Bxd6 {[%emt 0:00:01]} (21. e5 $2 dxc5 22. Qh3 (22. exf6 $2 c4 $19) 22... Ne4 $19) 21... Bxd6 {[%emt 0:00:34]} (21... Qxc2+ 22. Qxc2 Rcxc2 23. Bxe7 Kxe7 24. e5 (24. Nbc5 $2 Bc6 $19)) 22. Qxd6 {[%emt 0:00:09]} Qxd6 {[%emt 0:00:06]} (22... Rxc2 23. Qd4 Bxe4 24. Rxe4 Nxe4 25. Qxe4 Rxh2 26. Rc1 $14 (26. Qxb4 $2 Qc2+ 27. Ka1 Qxd1+)) (22... Nxe4 23. Qxb4 Bd5 24. Ka1 Rxc2 25. Nb6 $14 (25. Rxe4 $2 Rc1+ {[%mdl 64] Back Rank} 26. Nxc1 Qxc1+ {[%mdl 64] Back Rank} 27. Rxc1 Rxc1#)) (22... Qxc2+ 23. Ka1 Re2 24. Rg1 $18 (24. Qxb4 Qxe4 25. Qxe4 Rxe4 $11)) 23. Rxd6 {[%emt 0:00:01]} Bxe4 {[%emt 0:00:03]} (23... Rgxc2 24. Nb6 Bxe4 25. Rxe4 Nxe4 26. Nxc8 Rxc8 27. Rd4 $15) 24. Nd4 {[%emt 0:00:12]} (24. Nac5 {might work better.} Bxc2+ 25. Ka1) 24... Rcxc2 {[%emt 0:00:17]} ({Not} 24... Bxc2+ 25. Nxc2 Rgxc2 26. Rd4 $17) (24... Rxh2 $2 25. Ka1 $19) 25. Nxc2 {[%emt 0:00:14]} Bxc2+ {[%emt 0:00:02][%cal Be4c2,Bc2a4,Ba4d7][%mdl 32]} 26. Kc1 {[%emt 0:00:04]} Bxa4 {[%emt 0:00:00]} 27. Rxa6 {[%emt 0:00:02]} Bd7 {[%emt 0:00:04]} 28. f5 {[%emt 0:00:05]} Rxh2 {[%emt 0:00:04]} 29. Rb6 {[%emt 0:00:03]} Rh4 {[%emt 0:00:03]} ({Don't go for} 29... Nd5 $2 30. Rd6 Nf4 31. Rd2 $19) 30. Rd1 {[%emt 0:00:03]} Ke7 {[%emt 0:00:05]} 31. Rb7 $2 {[%emt 0:00:02]} (31. fxe6 Bxe6 32. Rb7+ Nd7 33. b3) 31... exf5 {[%emt 0:00:06]} 32. Kc2 {[%emt 0:00:03]} h5 {[%emt 0:00:02][%cal Bh7h5,Bh5h4,Bh4h3,Bh3h2][%mdl 32]} 33. Kb3 {[%emt 0:00:01]} Re4 {[%emt 0:00:03]} 34. Rxb4 {[%emt 0:00:03]} h4 {[%emt 0:00:03]} 35. Rb7 {[%emt 0:00:03]} h3 {[%emt 0:00:03]} 36. a4 {[%emt 0:00:01]} Ke6 {[%emt 0:00:10]} ({Weaker is} 36... Rxa4 37. Rbxd7+ Nxd7 38. Kxa4 $11) 37. a5 {[%emt 0:00:01]} Ba4+ {[%emt 0:00:03][%mdl 64] [#] Skewer. Black mates.} 38. Kc3 {[%emt 0:00:03]} Bxd1 {[%emt 0:00:00]} 39. a6 {[%emt 0:00:05]} Ra4 {[%emt 0:00:02]} 40. a7 {[%emt 0:00:01]} h2 {[%emt 0:00:02]} 41. b3 {[%emt 0:00:00]} Rxa7 {[%emt 0:00:04] Weighted Error Value: White=0.79/Black=0.24 (precise)} 0-1

[Event "ChessKid Cup Div-III 2023"]
[Site "Online"]
[Date "2023.05.22"]
[Round "1.2"]
[White "Gadimbayli, Abdulla"]
[Black "Lazavik, Denis"]
[Result "1/2-1/2"]
[ECO "C67"]
[WhiteElo "2500"]
[BlackElo "2544"]
[Annotator "TA"]
[PlyCount "79"]
[EventDate "2023.05.21"]
[EventType "k.o."]
[EventCountry "NET"]
[SourceTitle "playchess.com"]
[Source "ChessBase"]
[SourceQuality "1"]
[TimeControl "900+3"]

{[%evp 9,79,15,6,0,26,-6,22,10,21,14,14,9,11,4,16,17,21,14,21,16,23,-7,0,0,0,0,6,2,0,-22,-14,-36,-20,-9,-8,-10,-10,-10,-14,-29,-18,-38,-32,-60,-36,-70,-65,-122,-116,-150,-108,-112,-84,-140,-93,-93,-83,-88,-86,-78,-51,-76,-80,-236,-93,-104,0,-252,0,-81,0,-253]} 1. e4 {[%emt 0:00:03]} e5 {[%emt 0:00:04]} 2. Nf3 {[%emt 0:00:01]} Nc6 {[%emt 0:00:00]} 3. Bb5 {[%emt 0:00:01]} Nf6 {[%emt 0:00:01]} 4. O-O {[%emt 0:00:02][%cal Bh1f1,Bf1e1,Be1e4][%mdl 32]} Nxe4 {[%emt 0:00:01]} 5. Re1 {[%emt 0:00:00]} Nd6 {[%emt 0:00:01]} 6. Bf1 {[%emt 0:00:00] C67: Ruy Lopez: Berlin Defence: 4 0-0 Nxe4.} Be7 {[%emt 0:00:12]} 7. Nc3 {[%emt 0:00:02] is the new trend.} e4 {[%emt 0:00:15][%mdl 64] Deflection} 8. Nxe4 {[%emt 0:00:10]} Nxe4 {[%emt 0:00:00]} 9. Rxe4 {[%emt 0:00:00]} d5 {[%emt 0:00:01]} 10. Re1 {[%emt 0:00:00]} O-O {[%emt 0:00:05]} 11. d4 {[%emt 0:00:01]} Bg4 {[%emt 0:00:01]} 12. c3 {[%emt 0:00:02]} Bd6 {[%emt 0:00:01]} 13. h3 {[%emt 0:00:01]} Bh5 {[%emt 0:00:02] [#]} 14. g3 $146 {[%emt 0:00:04]} ({Predecessor:} 14. g4 Bg6 15. Ne5 Nxe5 16. dxe5 Bc5 17. Be3 Bxe3 18. Rxe3 c6 19. Qd4 Qb6 20. Qxb6 axb6 {½-½ Grandelius,N (2658)-Gumularz,S (2558) EU-ch 23rd Vrnjacka Banja 2023 (6)}) 14... Ne7 {[%emt 0:00:26]} 15. Bg2 {[%emt 0:00:17]} c6 {[%emt 0:00:59]} 16. Qb3 {[%emt 0:01:47]} Qc7 {[%emt 0:00:14]} 17. Ne5 {[%emt 0:00:32]} f6 {[%emt 0:00:30]} 18. Nd3 {[%emt 0:00:03]} Bf7 {[%emt 0:00:05]} 19. Nf4 {[%emt 0:01:52]} Rfe8 {[%emt 0:00:18]} 20. Bd2 {[%emt 0:00:24]} Ng6 {[%emt 0:00:33]} (20... g5 $5 {[%cal Rg5f4]} 21. Ne6 Qc8 $15) 21. Nxg6 {[%emt 0:00:54]} Bxg6 {[%emt 0:00:04]} (21... Rxe1+ {simplifies} 22. Rxe1 Bxg6 23. Qa4 Qb6) 22. c4 {[%emt 0:00:03]} dxc4 {[%emt 0:00:06]} 23. Qxc4+ {[%emt 0:00:00]} Bf7 {[%emt 0:00:04]} 24. Qc3 {[%emt 0:00:03]} Qd7 {[%emt 0:00:20]} 25. Qd3 {[%emt 0:00:48]} Bc7 {[%emt 0:01:02]} 26. b4 {[%emt 0:03:43][%cal Ob4b5]} Bd5 {[%emt 0:00:20]} (26... Bb6 $5 {[%cal Rd7d4]} 27. Rxe8+ Rxe8 $15) 27. Bf1 {[%emt 0:00:02]} Rxe1 {[%emt 0:00:19]} 28. Rxe1 {[%emt 0:00:25]} ({Better is} 28. Bxe1 $15 Be6 29. Bc3) 28... Bxa2 $17 {[%emt 0:00:57]} 29. b5 {[%emt 0:00:24]} Bd5 {[%emt 0:00:09]} 30. Bb4 {[%emt 0:02:05]} Re8 {[%emt 0:00:16] Wards off Re7. Threatens to win with ...Rxe1.} 31. Ra1 {[%emt 0:00:02]} ({White should try} 31. Rc1) 31... Bb6 {[%emt 0:00:10]} (31... cxb5 $142 {Strongly threatening ...a6.} 32. Qxb5 Qxb5 33. Bxb5 Ra8) 32. Bc5 {[%emt 0:00:22]} cxb5 {[%emt 0:00:38]} (32... h6 {feels hotter.} 33. Rc1 Qe6 34. bxc6 Qxc6 35. Qg6 Be4) 33. Qxb5 {[%emt 0:00:41]} Qxb5 {[%emt 0:00:12]} 34. Bxb5 {[%emt 0:00:00]} Rd8 {[%emt 0:00:06]} 35. Rd1 {[%emt 0:00:45]} Kf7 {[%emt 0:00:10]} 36. Bb4 $2 {[%emt 0:00:09]} (36. Bxb6 $17 axb6 37. Kf1) 36... Bc6 {[%emt 0:00:10]} (36... Be6 $19 37. Bc3 Bxh3) 37. Bc4+ {[%emt 0:00:03] [#]} Bd5 {[%emt 0:00:01]} (37... Kg6 $1 $17 38. d5 Bd7) 38. Bb5 $1 $19 {[%emt 0:00:06]} Bc6 $2 {[%emt 0:00:02]} (38... Be6 $19 {is more deadly.} 39. Bc3 Bxh3) 39. Bc4+ $17 {[%emt 0:00:10] [#]} Bd5 $2 {[%emt 0:00:01]} (39... Kg6 $1 $17 40. d5 Bd7) 40. Bb5 $1 {[%emt 0:00:01][%mdl 32768] Weighted Error Value: White=0.19 (very precise) /Black=0.25 (precise) . An unexpected result.} 1/2-1/2

[Event "ChessKid Cup Div-III 2023"]
[Site "Online"]
[Date "2023.05.22"]
[Round "1.3"]
[White "Chigaev, Maksim"]
[Black "Vaibhav, Suri"]
[Result "1-0"]
[ECO "B12"]
[WhiteElo "2628"]
[BlackElo "2595"]
[Annotator "TA"]
[PlyCount "93"]
[EventDate "2023.05.21"]
[EventType "k.o."]
[EventCountry "NET"]
[SourceTitle "playchess.com"]
[Source "ChessBase"]
[SourceQuality "1"]
[TimeControl "900+3"]

{[%evp 9,93,0,0,1,10,0,57,36,63,55,111,32,131,18,18,16,27,-15,6,-17,-12,-52,-16,-40,-35,-55,-53,-52,-41,-82,-28,-34,-27,-29,0,-10,0,-8,11,-8,0,0,0,0,0,0,0,0,46,6,25,0,0,0,4,0,58,73,242,247,222,-66,261,246,236,206,422,407,386,343,359,364,366,300,166,149,135,126,1418,1331,5314,5314,5306,5297,29997,29980]} 1. e4 {[%emt 0:00:13]} c6 {[%emt 0:00:08]} 2. d4 {[%emt 0:00:24]} d5 {[%emt 0:03:33]} 3. e5 {[%emt 0:00:06]} c5 {[%emt 0:00:04]} 4. Nf3 {[%emt 0:00:14]} cxd4 {[%emt 0:00:04]} 5. Qxd4 {[%emt 0:00:04]} Nc6 {[%emt 0:00:03]} 6. Qf4 {[%emt 0:00:03] B12: Caro-Kann: Advance Variation.} e6 {[%emt 0:00:08]} 7. Bd3 {[%emt 0:00:06]} Bc5 $5 {[%emt 0:00:06][%mdl 4] [#] Exploring less charted territory.} (7... Nb4 $11) 8. Nc3 $146 {[%emt 0:00:10] White is slightly better.} (8. Qg3 $5 {[%cal Rg3g7]} Nge7 9. Nc3 $14) ({Predecessor:} 8. Qg3 Nge7 9. Nc3 Ng6 10. h4 Nd4 11. h5 Ne7 12. Nxd4 Bxd4 13. Nb5 Bc5 14. Qxg7 {1-0 Bachmann,A (2588)-Samunenkov,I (2428) Titled Tuesday intern op 17th May Early blitz 2022 (5)}) 8... a6 {[%emt 0:00:20]} 9. Qg3 {[%emt 0:00:50]} (9. Ng5 f5 $15) 9... Nge7 {[%emt 0:00:34]} (9... g6 $14) 10. h4 {[%emt 0:00:16]} ({Better is} 10. Qxg7 $16 Rg8 11. Qxh7) 10... Nb4 {[%emt 0:01:17]} (10... Bd7 $14) 11. h5 {[%emt 0:00:58]} (11. Qxg7 $16 Nxd3+ 12. cxd3) 11... Nxd3+ $11 {[%emt 0:00:14]} 12. cxd3 {[%emt 0:00:03]} Nf5 {[%emt 0:00:04]} 13. Qg4 {[%emt 0:00:14]} h6 {[%emt 0:00:04]} 14. O-O {[%emt 0:00:27]} Bd7 {[%emt 0:00:05]} 15. d4 {[%emt 0:00:05]} Bb6 {[%emt 0:00:20]} 16. Be3 {[%emt 0:00:04]} O-O {[%emt 0:00:05]} 17. Rac1 {[%emt 0:01:15]} Rc8 {[%emt 0:00:03]} 18. Qf4 {[%emt 0:01:03]} Qe7 {[%emt 0:00:08]} 19. g4 {[%emt 0:01:03]} Nxe3 {[%emt 0:00:04]} ({Black should try} 19... Nh4 $17 20. Ne1 Bb5 21. Nxb5 Rxc1 22. Bxc1 axb5) 20. Qxe3 {[%emt 0:00:03]} Rc4 {[%emt 0:00:42] Strongly threatening ...f5.} 21. b3 {[%emt 0:00:19]} Rc6 {[%emt 0:00:08]} 22. Na4 {[%emt 0:00:50] [#] Rxc6 is the strong threat.} Ba7 {[%emt 0:00:28]} 23. Nc5 {[%emt 0:00:10][%cal Ba4c5,Bc5e4,Be4c3,Bc3e2,Be2g3,Bg3h5][%mdl 32]} Rc7 {[%emt 0:00:21]} 24. Rc3 {[%emt 0:00:32]} Bb5 {[%emt 0:00:39]} 25. Rfc1 {[%emt 0:00:05]} b6 {[%emt 0:00:09]} 26. Ne4 {[%emt 0:00:35]} Rxc3 {[%emt 0:00:23]} 27. Nxc3 {[%emt 0:00:03]} Bd7 {[%emt 0:00:04]} 28. Ne2 {[%emt 0:00:08]} Rc8 {[%emt 0:00:14]} (28... Bb8 $11) 29. Kg2 {[%emt 0:00:16]} Bb8 {[%emt 0:00:17]} 30. Ng3 {[%emt 0:00:18]} Rxc1 {[%emt 0:00:22]} 31. Qxc1 {[%emt 0:00:04]} Qd8 {[%emt 0:00:03]} 32. g5 {[%emt 0:00:13]} hxg5 {[%emt 0:00:20]} (32... Kh7 $1 $11) 33. h6 $1 $14 {[%emt 0:00:04] aiming for hxg7.} gxh6 {[%emt 0:00:18]} (33... g4 $16 34. Nh2 f5) 34. Nh5 $18 {[%emt 0:00:05]} Bb5 {[%emt 0:00:22]} 35. Qc2 {[%emt 0:00:33] Dodges Bd3} (35. Nf6+ $18 Kf8 36. Qc2) 35... Kf8 $2 {[%emt 0:00:37][%mdl 8192]} (35... f5 $1 $15 {stays ahead.} 36. exf6 Be8) 36. a4 {[%emt 0:00:21]} (36. Qh7 $6 Ke7 $16) 36... g4 {[%emt 0:00:06] [#]} 37. Nh2 {[%emt 0:00:20][%mdl 1024] White has strong compensation.} Bd7 {[%emt 0:00:05]} (37... Be8 {was necessary.}) 38. Nf6 {[%emt 0:00:19]} (38. Nxg4 Ke7 39. Qd2 Qh8 40. Qb4+ (40. Nxh6 Be8 $18) 40... Kd8 41. Qxb6+ Bc7 42. Qxa6 Bc8 $18) (38. Qh7 Qg5 39. Qh8+ Ke7 $18) 38... Ke7 {[%emt 0:00:03]} 39. Qc1 {[%emt 0:00:26] White wants to mate with Qa3+.} Qh8 {[%emt 0:00:13]} 40. a5 {[%emt 0:00:19][%mdl 64] Deflection} bxa5 {[%emt 0:00:33]} (40... g3 $2 41. fxg3 bxa5 42. Nhg4 $18) 41. Qc5+ {[%emt 0:00:07]} (41. Nhxg4 Bb5 $11) 41... Kd8 {[%emt 0:00:03]} 42. Nxd7 {[%emt 0:01:00]} (42. Nhxg4 Bb5 43. Ne3 (43. Qb6+ $2 Kc8 $19) 43... h5 $17) 42... Kxd7 {[%emt 0:00:05]} 43. Nxg4 {[%emt 0:00:03] Black must now prevent Nf6+. White is much more active.} (43. Qxa5 f5 44. Qa4+ Kc7 45. Qxa6 Qc8 46. Qa5+ (46. Qd6+ Kb7 $17) 46... Kb7 47. Qb4+ Ka8 $17) 43... Qg7 {[%emt 0:01:33][%mdl 8192]} (43... Qg8 $16 44. Kf3 Qc8 45. Nf6+ (45. Qxa5 Qc6 $11) 45... Kd8 46. Qxa5+ (46. Qf8+ Kc7 $14) 46... Qc7 47. Qxa6 (47. Qa4 Qc3+ 48. Kg2 Kc7 $11) 47... Qc2) 44. Kf3 {[%emt 0:00:04] Threatening mate with Nf6+.} Qg6 {[%emt 0:00:03]} 45. Nf6+ {[%emt 0:00:04]} (45. Qxa5 $2 {too greedy.} Qf5+ 46. Kg3 h5 47. Qa4+ Kd8 $19) 45... Kd8 {[%emt 0:00:04]} 46. Ke2 {[%emt 0:00:51] Intending Qc6 and mate.} ({Inferior is} 46. Qxa5+ Bc7 47. Qa3 (47. Qxa6 Qf5+ 48. Kg2 Qg5+ 49. Kf3 Qf5+ 50. Ke3 Bxe5 $11) 47... Qd3+ 48. Kg2 Kc8 $11) 46... Ba7 {[%emt 0:00:58]} 47. Qc6 {[%emt 0:00:23] Weighted Error Value: White=0.28 (precise) /Black=0.50} 1-0